bitfinex-derivatives/quotes_SOLF0:USTF0_20250211
["timestamp","ask_amount","ask_price","bid_price","bid_amount"]
[1739236796002,29.83842946,202.16,202.03,9.24965651]
[1739236796204,4.9467,202.13,202.05,4.9483]
[1739236796408,29.83842946,202.16,202.03,9.24965651]
[1739236797006,4.9476,202.09,202.07,0.03243974]
[1739236797213,0.0330859,202.12,202.07,0.03243974]
[1739236797811,0.0330859,202.12,202.07,4.98033974]
[1739236798113,0.0330859,202.12,202.07,0.03243974]
[1739236798316,0.0330859,202.12,202.09,4.9474]
[1739236799910,0.0330859,202.12,202.1,4.947]
[1739236800312,32.53137664,202.12,202.1,4.947]
[1739236801508,32.53137664,202.12,202.11,4.947]
[1739236802816,0.0330859,202.12,202.11,4.947]
[1739236807627,0.0330859,202.12,202.11,10.86471797]
[1739236808323,32.49829074,202.17,202.11,5.91771797]
[1739236808629,32.49829074,202.17,202.16,4.9458]
[1739236810329,0.03601478,202.19,202.16,4.9458]
[1739236810634,4.9455,202.18,202.15,5.91771797]
[1739236810836,0.03601478,202.19,202.14,0.03183798]
[1739236811335,4.9457,202.17,202.14,4.97803798]
[1739236811535,0.03601478,202.19,202.15,5.91771797]
[1739236812634,4.9453,202.18,202.15,5.91771797]
[1739236814135,11.92334817,202.19,202.15,5.91771797]
[1739236814335,4.9455,202.17,202.15,5.91771797]
[1739236815837,4.9458,202.16,202.14,0.03183798]
[1739236816339,20.62478773,202.19,202.14,0.03183798]
[1739236816537,20.62478773,202.19,202.15,5.91771797]
[1739236817739,4.9453,202.18,202.15,5.91771797]
[1739236818235,20.62478773,202.19,202.15,5.91771797]
[1739236818435,20.58877295,202.18,202.14,0.03183798]
[1739236819140,4.9458,202.17,202.14,0.03183798]
[1739236821243,20.58877295,202.18,202.14,0.03183798]
[1739236821443,4.9458,202.16,202.14,0.03183798]
[1739236822839,4.946,202.15,202.14,0.03183798]
[1739236823141,26.50649092,202.18,202.11,5.91771797]
[1739236823345,4.9461,202.15,202.11,10.86451797]
[1739236824238,4.97834458,202.15,202.11,10.89876684]
[1739236824444,0.03224458,202.15,202.13,10.86421797]
[1739236825543,0.03224458,202.15,202.13,5.91771797]
[1739236827045,4.97834458,202.15,202.13,5.91771797]
[1739236829948,0.03224458,202.15,202.11,5.95196684]
[1739236830552,4.9465,202.14,202.11,5.95196684]
[1739236830751,0.03224458,202.15,202.11,5.95196684]
[1739236831150,4.9466,202.13,202.11,5.95196684]
[1739236832454,4.9468,202.12,202.11,5.95196684]
[1739236832650,4.9468,202.12,202.11,0.03424887]
[1739236834551,4.9466,202.13,202.11,0.03424887]
[1739236835154,4.9468,202.12,202.11,0.03424887]
[1739236837055,5.91771797,202.14,202.07,5.91771797]
[1739236837354,4.9477,202.08,202.07,5.91771797]
[1739236839051,4.9477,202.08,202.05,5.95248719]
[1739236840057,4.9477,202.08,202.05,10.90088719]
[1739236841463,0.0361845,202.1,202.07,10.86561797]
[1739236841963,0.0361845,202.1,202.07,5.91771797]
[1739236842762,4.9835845,202.1,202.07,5.91771797]
[1739236844166,4.9835845,202.1,202.07,10.86571797]
[1739236844763,0.0361845,202.1,202.07,5.91771797]
[1739236844957,0.0361845,202.1,202.05,0.03476922]
[1739236844958,0.0361845,202.1,202.09,5.91771797]
[1739236847165,55.11911356,202.1,202.09,5.91771797]
[1739236847463,81.37402167,202.1,202.09,5.91771797]
[1739236848265,81.37402167,202.1,202.09,10.86521797]
[1739236850160,68.05501413,202.1,202.09,10.86521797]
[1739236853067,0.0361845,202.1,202.09,10.86521797]
[1739236854265,20.61458035,202.13,202.12,4.9468]
[1739236854473,20.61458035,202.13,202.12,10.86451797]
[1739236855772,55.08292906,202.14,202.13,4.9465]
[1739236856272,13.35319477,202.15,202.12,5.91771797]
[1739236856476,13.35319477,202.15,202.14,5.91771797]
[1739236856673,13.35319477,202.15,202.14,10.86401797]
[1739236856877,102.60290491,202.16,202.14,5.91771797]
[1739236857573,102.60290491,202.16,202.15,4.946]
[1739236857871,84.71258877,202.16,202.15,4.946]
[1739236858075,75.75638877,202.16,202.15,4.946]
[1739236858271,47.09710842,202.16,202.15,4.946]
[1739236858478,12.65680842,202.16,202.15,4.946]
[1739236858974,95.28120202,202.17,202.16,4.9458]
[1739236859178,0.03512284,202.18,202.16,5.91771797]
[1739236859785,0.03512284,202.18,202.17,4.9455]
[1739236860278,0.03512284,202.18,202.16,10.86351797]
[1739236860483,0.03512284,202.18,202.16,5.91771797]
[1739236860984,4.98052284,202.18,202.14,5.95206376]
[1739236861686,0.03512284,202.18,202.14,5.95206376]
[1739236861986,4.9456,202.17,202.14,5.95206376]
[1739236862184,0.03512284,202.18,202.14,5.95206376]
[1739236862684,4.98062284,202.18,202.14,5.95206376]
[1739236863499,4.98062284,202.18,202.16,5.91771797]
[1739236863784,0.03512284,202.18,202.16,5.91771797]
[1739236864785,4.98052284,202.18,202.16,5.91771797]
[1739236868392,0.03512284,202.18,202.16,5.91771797]
[1739236869592,1.23633801,202.17,202.16,5.91771797]
[1739236869793,1.23633801,202.17,202.16,10.86351797]
[1739236870583,0.03512284,202.18,202.17,4.9455]
[1739236870994,0.03512284,202.18,202.16,10.86351797]
[1739236872694,0.03512284,202.18,202.16,5.91771797]
[1739236873786,4.9456,202.17,202.14,0.03434579]
[1739236873992,0.03512284,202.18,202.14,0.03434579]
[1739236874387,5.91771797,202.17,202.14,0.03434579]
[1739236874691,5.91771797,202.15,202.14,0.03434579]
[1739236875889,10.86371797,202.15,202.14,0.03434579]
[1739236878900,5.91771797,202.15,202.14,0.03434579]
[1739236879099,4.6787,202.17,202.14,0.03434579]
[1739236879100,15.54201797,202.17,202.14,0.03434579]
[1739236879399,10.59641797,202.17,202.14,0.03434579]
[1739236879599,15.54201797,202.17,202.14,0.03434579]
[1739236879899,9.6243,202.17,202.14,0.03434579]
[1739236880394,10.59641797,202.17,202.14,0.03434579]
[1739236880596,4.946,202.15,202.14,0.03434579]
[1739236881099,4.9458,202.16,202.14,0.03434579]
[1739236882099,10.59641797,202.17,202.14,0.03434579]
[1739236882401,10.86371797,202.15,202.14,0.03434579]
[1739236884498,5.91771797,202.15,202.06,5.91771797]
[1739236884704,5.91771797,202.13,202.06,5.91771797]
[1739236884904,4.9468,202.12,202.07,4.9477]
[1739236885105,4.9468,202.12,202.06,5.91771797]
[1739236885407,5.91771797,202.13,202.06,5.91771797]
[1739236885606,0.03682089,202.11,202.08,4.9475]
[1739236888201,0.03682089,202.11,202.07,0.03175285]
[1739236888800,0.03682089,202.11,202.07,4.97975285]
[1739236889807,4.98392089,202.11,202.07,4.97975285]
[1739236890705,0.03682089,202.11,202.07,4.97975285]
[1739236890909,0.03682089,202.11,202.07,0.03175285]
[1739236891105,0.03682089,202.11,202.09,4.9475]
[1739236891806,0.03682089,202.11,202.1,10.86491797]
[1739236892105,0.03682089,202.11,202.1,4.9472]
[1739236893104,0.03682089,202.11,202.08,5.91771797]
[1739236893309,0.03682089,202.11,202.08,10.86531797]
[1739236895002,10.90153886,202.11,202.07,4.97965285]
[1739236896508,10.86541797,202.09,202.07,0.03175285]
[1739236896705,5.91771797,202.09,202.07,0.03175285]
[1739236896908,4.9483,202.06,202.02,4.9492]
[1739236897109,4.9483,202.06,202.0,5.91771797]
[1739236897509,4.9485,202.05,202.01,4.9492]
[1739236897712,10.86621797,202.05,202.01,4.9492]
[1739236898101,10.89792106,202.05,202.01,4.98599687]
[1739236898509,5.94942106,202.05,202.02,4.9492]
[1739236898709,0.03170309,202.05,202.01,0.03679687]
[1739236899111,0.03170309,202.05,202.02,5.91771797]
[1739236900103,0.03170309,202.05,202.04,5.91771797]
[1739236900503,0.03170309,202.05,202.04,10.86641797]
[1739236905007,20.6193906,202.1,202.04,5.91771797]
[1739236905213,20.6193906,202.1,202.09,4.9475]
[1739236906516,20.65746326,202.12,202.11,4.947]
[1739236909523,0.03807266,202.12,202.11,4.947]
[1739236910918,20.6193906,202.16,202.1,5.91771797]
[1739236911220,20.6193906,202.16,202.14,4.9461]
[1739236911420,32.94054408,202.16,202.13,5.91771797]
[1739236911621,32.94054408,202.16,202.15,10.86371797]
[1739236913917,0.03254909,202.18,202.17,4.9455]
[1739236914322,0.03254909,202.18,202.17,10.86321797]
[1739236921327,0.03254909,202.18,202.15,5.91771797]
[1739236921527,0.03254909,202.18,202.13,5.95466428]
[1739236921732,0.03254909,202.18,202.15,5.91771797]
[1739236922437,0.03254909,202.18,202.16,4.9458]
[1739236923236,0.03254909,202.18,202.17,4.9455]
[1739236924441,0.03254909,202.18,202.17,10.86321797]
[1739236928139,20.6193906,202.25,202.24,4.9438]
[1739236928341,20.6193906,202.25,202.24,10.86151797]
[1739236930841,20.6193906,202.25,202.22,5.9506578]
[1739236931043,20.6193906,202.25,202.22,0.03293983]
[1739236931344,20.6193906,202.25,202.22,5.9506578]
[1739236933150,4.98097357,202.27,202.22,5.9506578]
[1739236934148,0.03787357,202.27,202.22,5.9506578]
[1739236936350,4.9433,202.26,202.22,5.9506578]
[1739236937551,4.9433,202.26,202.24,5.91771797]
[1739236938056,0.03787357,202.27,202.24,5.91771797]
[1739236938253,0.03787357,202.27,202.26,5.91771797]
[1739236939151,0.03787357,202.27,202.24,5.91771797]
[1739236940450,4.9433,202.26,202.24,5.91771797]
[1739236941756,0.03787357,202.27,202.24,5.91771797]
[1739236941963,0.03787357,202.27,202.26,5.91771797]
[1739236942258,0.03787357,202.27,202.26,10.86101797]
[1739236942657,0.03787357,202.27,202.26,5.91771797]
[1739236942863,20.65726417,202.27,202.26,5.91771797]
[1739236943061,20.65726417,202.27,202.24,5.91771797]
[1739236943264,25.60036417,202.27,202.24,5.91771797]
[1739236943459,20.65726417,202.27,202.24,5.91771797]
[1739236943859,25.60036417,202.27,202.24,5.91771797]
[1739236944159,20.65726417,202.27,202.24,5.91771797]
[1739236945461,25.60056417,202.27,202.24,5.91771797]
[1739236946866,20.65726417,202.27,202.24,5.91771797]
[1739236947762,32.9296641,202.26,202.24,5.91771797]
[1739236949263,32.9296641,202.26,202.25,4.9436]
[1739236950561,0.03787357,202.27,202.25,4.9436]
[1739236950770,0.03787357,202.27,202.26,5.91771797]
[1739236951466,0.03787357,202.27,202.26,10.86101797]
[1739236951665,20.6193906,202.29,202.26,5.91771797]
[1739236951967,20.6193906,202.29,202.28,5.91771797]
[1739236952169,20.6193906,202.29,202.28,10.86051797]
[1739236954677,66.010435,202.3,202.29,4.9426]
[1739236954873,82.22511541,202.31,202.28,5.91771797]
[1739236955069,82.22511541,202.31,202.3,5.91771797]
[1739236955780,82.22511541,202.31,202.3,10.86011797]
[1739236956875,0.03599186,202.31,202.3,10.86011797]
[1739236959675,178.54135332,202.38,202.3,5.91771797]
[1739236959676,1.4668,202.38,202.3,5.91771797]
[1739236959877,1.4668,202.38,202.37,5.91771797]
[1739236960975,1.59088632,202.4,202.37,10.85841797]
[1739236961280,1.59088632,202.4,202.39,5.91771797]
[1739236961578,0.03518632,202.4,202.39,10.85791797]
[1739236962575,0.03518632,202.4,202.39,5.91771797]
[1739236963175,0.03518632,202.4,202.39,10.85791797]
[1739236966679,4.9377,202.5,202.39,5.91771797]
[1739236966878,4.6322,202.51,202.46,5.91771797]
[1739236967881,9.60617427,202.51,202.46,10.89233153]
[1739236968180,9.60617427,202.51,202.46,5.95393153]
[1739236968379,15.52389224,202.51,202.46,0.03621356]
[1739236968584,4.9376,202.5,202.46,0.03621356]
[1739236969383,4.9378,202.49,202.46,0.03621356]
[1739236969581,10.58659224,202.51,202.46,0.03621356]
[1739236969785,5.91771797,202.49,202.46,0.03621356]
[1739236969979,5.91771797,202.49,202.28,1.5608]
[1739236969980,5.91771797,202.47,202.4,5.91771797]
[1739236970281,5.91771797,202.47,202.38,5.91771797]
[1739236970584,1.542,202.46,202.38,5.91771797]
[1739236971185,4.970476,202.44,202.4,4.97379081]
[1739236971785,4.970476,202.44,202.4,0.03389081]
[1739236972085,4.9393,202.43,202.4,0.03389081]
[1739236972387,0.031576,202.44,202.4,0.03389081]
[1739236972589,4.970576,202.44,202.4,0.03389081]
[1739236973186,0.031576,202.44,202.4,0.03389081]
[1739236973788,4.970676,202.44,202.4,0.03389081]
[1739236974486,0.031576,202.44,202.4,10.89140878]
[1739236974689,0.031576,202.44,202.4,5.95160878]
[1739236975085,4.970676,202.44,202.4,5.95160878]
[1739236975589,0.031576,202.44,202.4,5.95160878]
[1739236976089,0.031576,202.44,202.42,5.91771797]
[1739236976682,0.031576,202.44,202.43,4.9392]
[1739236977993,3.103,202.51,202.48,4.9379]
[1739236978289,3.103,202.51,202.49,5.91771797]
[1739236979892,1.5165,202.51,202.49,5.91771797]
[1739236980389,0.03338676,202.52,202.51,4.9372]
[1739236980587,0.03338676,202.52,202.51,10.85491797]
[1739236981986,1.4821,202.58,202.51,5.91771797]
[1739236982191,1.4821,202.58,202.57,5.91771797]
[1739236982383,54.53806799,202.61,202.41,1.5923]
[1739236982587,1.4821,202.6,202.55,5.91771797]
[1739236983191,1.51640471,202.6,202.55,10.88676304]
[1739236983391,1.51640471,202.6,202.55,5.95076304]
[1739236983594,6.45140471,202.6,202.55,5.95076304]
[1739236984295,6.45140471,202.6,202.55,10.88706304]
[1739236985697,1.51640471,202.6,202.55,5.95076304]
[1739236985899,4.9354,202.59,202.55,10.88696304]
[1739236986598,1.51640471,202.6,202.55,5.95076304]
[1739236986804,6.45150471,202.6,202.56,4.9359]
[1739236987000,6.45150471,202.6,202.57,5.91771797]
[1739236989001,4.9353,202.59,202.57,5.91771797]
[1739236989505,1.51640471,202.6,202.57,5.91771797]
[1739236990705,1.51640471,202.6,202.57,10.85351797]
[1739236990907,1.51640471,202.6,202.59,5.91771797]
[1739236991810,1.51640471,202.6,202.59,10.85301797]
[1739236992808,0.03430471,202.6,202.59,10.85301797]
[1739236995615,0.03430471,202.6,202.59,5.91771797]
[1739236996208,1.5475,202.66,202.59,5.91771797]
[1739236996413,1.5475,202.66,202.64,5.91771797]
[1739236997206,1.5475,202.66,202.62,5.91771797]
[1739236997405,1.5475,202.66,202.63,0.03558861]
[1739236997915,6.4812,202.66,202.63,0.03558861]
[1739236998616,1.5475,202.66,202.63,0.03558861]
[1739236998814,4.9339,202.65,202.63,0.03558861]
[1739236999011,1.5475,202.66,202.63,0.03558861]
[1739236999319,4.934,202.65,202.63,0.03558861]
[1739237001314,1.5475,202.66,202.64,5.91771797]
[1739237001812,6.4811,202.66,202.64,5.91771797]
[1739237002916,1.5475,202.66,202.64,5.91771797]
[1739237003118,4.9338,202.65,202.64,5.91771797]
[1739237004517,1.5475,202.66,202.64,5.91771797]
[1739237004718,6.4811,202.66,202.64,5.91771797]
[1739237005216,1.5475,202.66,202.64,5.91771797]
[1739237005418,0.03685092,202.67,202.64,5.91771797]
[1739237005616,0.03685092,202.67,202.66,5.91771797]
[1739237006922,0.03685092,202.67,202.66,10.85131797]
[1739237010618,0.03685092,202.67,202.66,5.91771797]
[1739237011128,0.03685092,202.67,202.64,5.91771797]
[1739237011323,0.03685092,202.67,202.66,5.91771797]
[1739237013424,0.03685092,202.67,202.66,10.85131797]
[1739237014629,0.03685092,202.67,202.66,5.91771797]
[1739237016027,0.03685092,202.67,202.66,10.85131797]
[1739237023634,1.4576,202.75,202.71,4.9322]
[1739237023930,1.4576,202.75,202.72,5.91771797]
[1739237024235,1.4576,202.75,202.72,10.84981797]
[1739237025036,1.4576,202.75,202.73,4.9318]
[1739237026138,1.4576,202.75,202.72,5.91771797]
[1739237026438,1.4576,202.75,202.72,10.84981797]
[1739237028342,4.9317,202.74,202.71,0.03599646]
[1739237028641,1.4576,202.75,202.71,0.03599646]
[1739237028941,6.3891,202.75,202.71,4.96829646]
[1739237029138,1.4576,202.75,202.71,0.03599646]
[1739237029541,4.9319,202.74,202.71,0.03599646]
[1739237029841,55.99566799,202.75,202.71,0.03599646]
[1739237030844,60.92726799,202.75,202.71,4.96819646]
[1739237031045,55.99566799,202.75,202.71,0.03599646]
[1739237031346,55.99566799,202.75,202.73,4.9319]
[1739237031740,55.99566799,202.75,202.72,5.91771797]
[1739237032845,1.4576,202.75,202.72,5.91771797]
[1739237033747,6.389,202.75,202.72,5.91771797]
[1739237037548,1.4576,202.75,202.72,5.91771797]
[1739237037747,1.4576,202.75,202.72,10.84961797]
[1739237038149,6.3891,202.75,202.72,10.84961797]
[1739237038346,6.3891,202.75,202.71,0.03599646]
[1739237038347,1.4576,202.75,202.71,0.03599646]
[1739237038651,4.9317,202.74,202.71,0.03599646]
[1739237039043,1.4576,202.75,202.71,4.96819646]
[1739237039247,6.389,202.75,202.71,4.96819646]
[1739237040346,1.4576,202.75,202.72,5.91771797]
[1739237040551,1.4576,202.75,202.72,10.84961797]
[1739237041755,6.389,202.75,202.72,10.84961797]
[1739237043059,1.4576,202.75,202.74,5.91771797]
[1739237043355,1.4576,202.75,202.74,10.84931797]
[1739237043956,0.03315689,202.76,202.75,4.9314]
[1739237046154,0.03315689,202.76,202.74,10.84931797]
[1739237047356,0.03315689,202.76,202.75,4.9314]
[1739237047756,0.03315689,202.76,202.74,5.91771797]
[1739237047957,0.03315689,202.76,202.74,10.84931797]
[1739237048553,0.03315689,202.76,202.74,5.91771797]
[1739237049059,0.03315689,202.76,202.72,5.91771797]
[1739237049260,4.9316,202.75,202.72,5.91771797]
[1739237049960,0.03315689,202.76,202.74,5.91771797]
[1739237050357,0.03315689,202.76,202.74,10.84931797]
[1739237050660,0.03315689,202.76,202.74,5.91771797]
[1739237050962,0.03315689,202.76,202.74,10.84921797]
[1739237051261,0.03315689,202.76,202.74,5.91771797]
[1739237051464,0.03315689,202.76,202.75,4.9314]
[1739237052060,54.53806799,202.78,202.77,4.9309]
[1739237052258,54.53806799,202.78,202.77,10.84861797]
[1739237052758,54.53806799,202.78,202.77,5.91771797]
[1739237053061,54.53806799,202.78,202.75,5.91771797]
[1739237053261,54.53806799,202.78,202.75,10.88608331]
[1739237053964,54.53806799,202.78,202.75,5.95478331]
[1739237054165,59.46886799,202.78,202.75,5.95478331]
[1739237055066,54.53806799,202.78,202.75,5.95478331]
[1739237055463,22.85883998,202.8,202.75,5.95478331]
[1739237055464,65.3606841,202.8,202.75,5.95478331]
[1739237055766,14.52009382,202.79,202.61,9.8695]
[1739237055967,56.37764397,202.81,202.62,1.88262994]
[1739237056269,56.37764397,202.81,202.63,1.88258122]
[1739237056461,56.37764397,202.81,202.8,4.9302]
[1739237058872,137.01302868,202.83,202.78,0.03464387]
[1739237058873,0.03115609,202.83,202.78,0.03464387]
[1739237059076,0.03115609,202.83,202.82,5.91771797]
[1739237063075,0.03115609,202.83,202.82,10.84741797]
[1739237063873,0.03115609,202.83,202.82,5.91771797]
[1739237064573,0.03115609,202.83,202.82,10.84741797]
[1739237066077,0.03115609,202.83,202.82,5.91771797]
[1739237066878,0.03115609,202.83,202.82,10.84741797]
[1739237068985,0.03115609,202.83,202.82,5.91771797]
[1739237069184,0.03115609,202.83,202.8,5.91771797]
[1739237072493,4.9298,202.82,202.78,5.95236184]
[1739237072694,5.94887406,202.83,202.78,0.03464387]
[1739237073084,4.9298,202.82,202.78,0.03464387]
[1739237073387,5.94887406,202.83,202.78,0.03464387]
[1739237073788,0.03115609,202.83,202.78,5.95236184]
[1739237075292,5.94887406,202.83,202.78,5.95236184]
[1739237075791,10.87857406,202.83,202.78,10.88296184]
[1739237076788,10.87857406,202.83,202.79,4.9304]
[1739237076982,10.87857406,202.83,202.78,5.95236184]
[1739237077189,10.87857406,202.83,202.78,0.03464387]
[1739237077688,10.87857406,202.83,202.78,4.96534387]
[1739237078281,0.03115609,202.83,202.78,5.95236184]
[1739237079590,0.03115609,202.83,202.79,4.9304]
[1739237079791,0.03115609,202.83,202.78,5.95236184]
[1739237080791,0.03115609,202.83,202.8,4.9302]
[1739237082588,0.03115609,202.83,202.82,4.9297]
[1739237083994,0.03115609,202.83,202.8,5.91771797]
[1739237084695,0.03115609,202.83,202.81,4.9299]
[1739237084892,0.03115609,202.83,202.78,5.95236184]
[1739237085291,0.03115609,202.83,202.8,10.84771797]
[1739237087099,0.03115609,202.83,202.81,4.9299]
[1739237087300,0.03115609,202.83,202.82,5.91771797]
[1739237088100,0.03115609,202.83,202.82,10.84741797]
[1739237093501,0.03115609,202.83,202.82,5.91771797]
[1739237093701,0.03115609,202.83,202.82,10.84741797]
[1739237098701,5.609e-05,202.83,202.82,10.84741797]
[1739237101607,1.522,202.91,202.82,10.84741797]
[1739237101608,1.522,202.91,202.82,5.91771797]
[1739237101809,1.522,202.91,202.89,4.9278]
[1739237103203,1.6044,202.93,202.9,5.91771797]
[1739237103409,5.91771797,202.97,202.9,5.91771797]
[1739237103708,10.84401797,202.97,202.91,4.9274]
[1739237103905,5.91771797,202.95,202.91,4.9274]
[1739237104102,5.91771797,202.95,202.88,5.95042717]
[1739237104305,4.927,202.94,202.88,5.95042717]
[1739237104503,5.91771797,202.95,202.88,5.95042717]
[1739237104703,4.9279,202.9,202.88,5.95042717]
[1739237104912,1.4504,203.0,202.88,0.0327092]
[1739237104913,5.91771797,202.93,202.88,0.0327092]
[1739237105408,5.91771797,202.93,202.88,4.9609092]
[1739237105708,5.91771797,202.93,202.88,0.0327092]
[1739237106409,5.91771797,202.91,202.88,0.0327092]
[1739237107808,5.91771797,202.91,202.73,1.4573]
[1739237107809,5.91771797,202.89,202.8,5.91771797]
[1739237108010,5.91771797,202.87,202.8,5.91771797]
[1739237108209,1.2322862,202.86,202.8,5.91771797]
[1739237108411,1.2322862,202.85,202.8,5.91771797]
[1739237108613,1.2322862,202.84,202.8,5.91771797]
[1739237108808,5.91771797,202.87,202.81,4.9299]
[1739237108809,1.2322862,202.83,202.81,4.9299]
[1739237109004,1.2322862,202.82,202.81,4.9299]
[1739237109204,0.03429303,202.84,202.81,4.9299]
[1739237109414,0.03429303,202.84,202.8,5.94998151]
[1739237110114,0.03429303,202.84,202.83,4.9294]
[1739237112818,245.8132,203.01,202.82,5.91771797]
[1739237112819,5.91771797,202.94,202.82,5.91771797]
[1739237113020,5.91771797,202.96,202.9,5.91771797]
[1739237113220,5.91771797,202.98,202.9,5.91771797]
[1739237113521,10.84351797,202.98,202.92,4.9273]
[1739237114020,10.84351797,202.98,202.93,0.03365002]
[1739237114220,5.91771797,202.96,202.93,0.03365002]
[1739237114821,4.9265,202.95,202.93,0.03365002]
[1739237115219,3.67744909,202.95,202.93,0.03365002]
[1739237115627,3.67744909,202.94,202.93,0.03365002]
[1739237116630,3.67744909,202.94,202.93,4.96065002]
[1739237117629,3.67744909,202.94,202.93,0.03365002]
[1739237118029,3.67744909,202.94,202.93,4.96065002]
[1739237118828,3.67744909,202.94,202.93,0.03365002]
[1739237127832,3.67744909,202.94,202.93,4.96065002]
[1739237128535,3.67744909,202.94,202.93,0.03365002]
[1739237129033,3.67744909,202.94,202.93,4.96065002]
[1739237130635,3.67744909,202.94,202.93,0.03365002]
[1739237133534,3.67744909,202.94,202.88,5.91771797]
[1739237133831,14.52216706,202.94,202.88,10.84571797]
[1739237134035,5.23544909,202.93,202.88,5.91771797]
[1739237134735,5.26772643,202.93,202.88,5.95501165]
[1739237135034,3.67744909,202.92,202.9,5.91771797]
[1739237135336,3.67744909,202.91,202.9,10.84541797]
[1739237136232,3.67744909,202.91,202.89,4.928]
[1739237136433,3.67744909,202.9,202.89,4.928]
[1739237137135,3.67744909,202.9,202.88,5.95501165]
[1739237137341,3.67744909,202.9,202.88,10.88321165]
[1739237137635,3.67744909,202.9,202.88,5.95501165]
[1739237138131,3.67744909,202.89,202.88,5.95501165]
[1739237138336,3.67744909,202.89,202.88,10.88321165]
[1739237162953,4.90920816,202.89,202.88,10.88321165]
[1739237163750,1.23175907,202.89,202.88,10.88321165]
[1739237163953,0.03227734,202.93,202.92,4.9273]
[1739237164154,0.03227734,202.93,202.92,10.84501797]
[1739237164359,0.03227734,202.93,202.9,4.9275]
[1739237164553,0.03227734,202.93,202.88,5.95501165]
[1739237165155,5.91771797,202.92,202.88,0.03729368]
[1739237165355,7.44711797,202.92,202.88,0.03729368]
[1739237165955,5.91771797,202.9,202.88,0.03729368]
[1739237166458,4.928,202.89,202.84,5.91771797]
[1739237166653,5.91771797,202.9,202.84,5.91771797]
[1739237166854,10.84571797,202.9,202.84,10.84681797]
[1739237167050,5.91771797,202.9,202.82,5.91771797]
[1739237167359,5.91771797,202.88,202.82,5.91771797]
[1739237167654,5.91771797,202.88,202.87,5.91771797]
[1739237167655,1.818e-05,202.88,202.87,5.91771797]
[1739237167857,5.91771797,202.99,202.87,5.91771797]
[1739237168059,4.9254,203.0,202.93,5.91771797]
[1739237168560,5.91771797,202.99,202.93,5.91771797]
[1739237169161,0.03594867,202.98,202.94,0.03481571]
[1739237170557,0.03594867,202.98,202.94,4.96151571]
[1739237170863,0.03594867,202.98,202.94,0.03481571]
[1739237171561,1.52144867,202.98,202.96,4.9262]
[1739237172164,1.52144867,202.98,202.97,4.926]
[1739237173964,1.52144867,202.98,202.94,0.03481571]
[1739237174264,5.91771797,202.97,202.94,0.03481571]
[1739237176767,5.91771797,202.97,202.91,5.91771797]
[1739237176768,4.9263,202.96,202.91,5.91771797]
[1739237176967,4.9263,202.96,202.9,4.9277]
[1739237177364,1.52144867,202.98,202.9,4.9277]
[1739237177365,5.91771797,202.95,202.9,4.9277]
[1739237177565,10.84431797,202.95,202.9,4.9277]
[1739237177866,10.84431797,202.95,202.89,10.84571797]
[1739237178071,10.84431797,202.95,202.9,0.03431406]
[1739237178262,5.91771797,202.95,202.9,0.03431406]
[1739237178469,5.91771797,202.95,202.9,4.96181406]
[1739237179068,10.84431797,202.95,202.9,4.96181406]
[1739237180468,5.91771797,202.95,202.9,0.03431406]
[1739237180766,5.91771797,202.95,202.91,4.9275]
[1739237180970,5.91771797,202.95,202.9,0.03431406]
[1739237181267,5.91771797,202.93,202.87,5.91771797]
[1739237182065,10.84481797,202.93,202.89,4.9278]
[1739237182268,1.23203225,202.92,202.87,5.91771797]
[1739237182568,1.23203225,202.91,202.89,0.03778337]
[1739237182768,1.23203225,202.9,202.89,4.928]
[1739237183467,8.75915022,202.9,202.75,5.91771797]
[1739237183665,5.91771797,202.82,202.75,5.91771797]
[1739237183863,1.23203225,202.81,202.75,5.91771797]
[1739237184066,7.14975022,202.8,202.73,5.91771797]
[1739237184271,5.91771797,202.8,202.73,5.91771797]
[1739237184468,0.03178864,202.79,202.74,0.03245328]
[1739237184669,4.96228864,202.79,202.74,0.03245328]
[1739237184870,5.91771797,202.76,202.74,0.03245328]
[1739237185070,5.91771797,202.76,202.67,5.91771797]
[1739237185271,4.9314,202.75,202.67,10.85091797]
[1739237185774,5.91771797,202.76,202.67,5.91771797]
[1739237185977,4.9317,202.74,202.67,5.91771797]
[1739237186268,0.03144132,202.74,202.69,0.03626581]
[1739237186475,4.9319,202.73,202.69,0.03626581]
[1739237186775,5.94915929,202.74,202.69,0.03626581]
[1739237186975,0.03144132,202.74,202.69,5.95398378]
[1739237187475,0.03144132,202.74,202.71,5.91771797]
[1739237187974,0.03144132,202.74,202.73,5.91771797]
[1739237188871,0.03144132,202.74,202.73,10.84961797]
[1739237189576,0.03144132,202.74,202.73,14.12132099]
[1739237190071,3.0293,202.84,202.7,9.18942099]
[1739237190273,4.9301,202.81,202.7,9.18942099]
[1739237190474,10.66772099,202.83,202.7,9.18942099]
[1739237190876,1.4783,202.83,202.7,9.18942099]